bitfinex-derivatives/quotes_BTCF0:USTF0_20241224
["timestamp","ask_amount","ask_price","bid_price","bid_amount"]
[1735078165345,0.3698,98668.0,98666.0,0.051713]
[1735078166347,0.3738,98668.0,98666.0,0.051713]
[1735078169140,0.424513,98668.0,98666.0,0.001]
[1735078169642,1.5,98667.0,98666.0,0.001]
[1735078170040,0.425233,98668.0,98666.0,0.001]
[1735078170239,0.424513,98668.0,98666.0,0.001]
[1735078170540,0.04932018,98667.0,98666.0,0.001]
[1735078170743,0.05332018,98667.0,98652.0,0.050721]
[1735078170943,0.3608,98654.0,98652.0,0.050721]
[1735078172055,0.3618,98654.0,98652.0,0.050721]
[1735078173250,0.3628,98654.0,98652.0,0.050721]
[1735078174659,0.41352,98654.0,98652.0,0.050721]
[1735078176158,0.41352,98654.0,98651.0,0.0547]
[1735078176159,0.050721,98652.0,98651.0,0.0547]
[1735078177162,0.050723,98647.0,98645.0,0.050724]
[1735078178760,0.050723,98647.0,98645.0,0.052724]
[1735078179060,0.050723,98647.0,98645.0,0.002]
[1735078179061,0.3608,98646.0,98645.0,0.002]
[1735078180170,0.3608,98646.0,98645.0,0.001]
[1735078180463,0.3608,98646.0,98645.0,0.002]
[1735078180757,0.3608,98646.0,98645.0,0.001]
[1735078180964,0.3608,98646.0,98645.0,0.002]
[1735078181167,0.41012924,98646.0,98645.0,0.002]
[1735078194068,0.77092924,98646.0,98645.0,0.002]
[1735078200666,0.04932924,98646.0,98645.0,0.002]
[1735078200969,0.77092924,98646.0,98645.0,0.002]
[1735078203165,0.41012924,98646.0,98645.0,0.002]
[1735078203368,0.36152,98660.0,98645.0,0.002]
[1735078203669,0.3608,98660.0,98645.0,0.002]
[1735078203865,0.3608,98660.0,98658.0,0.050717]
[1735078204267,0.3608,98660.0,98659.0,0.0501]
[1735078206176,0.3628,98660.0,98659.0,0.0501]
[1735078207071,0.3678,98660.0,98659.0,0.0501]
[1735078207263,0.54377029,98666.0,98659.0,0.0501]
[1735078207470,0.3608,98666.0,98659.0,0.0501]
[1735078207664,0.3608,98666.0,98659.0,0.0531]
[1735078208073,0.3608,98666.0,98659.0,0.0511]
[1735078208376,0.3608,98666.0,98659.0,0.0531]
[1735078208571,0.3608,98666.0,98659.0,0.0541]
[1735078208976,0.3608,98666.0,98665.0,0.050714]
[1735078211084,0.48211024,98666.0,98665.0,0.050714]
[1735078212687,0.3608,98666.0,98665.0,0.050714]
[1735078218381,0.12131024,98673.0,98668.0,0.050712]
[1735078218382,0.3608,98669.0,98668.0,0.050712]
[1735078219784,0.3618,98669.0,98668.0,0.050712]
[1735078220586,0.3628,98669.0,98668.0,0.050712]
[1735078224486,0.002,98669.0,98668.0,0.050712]
[1735078224893,0.3628,98669.0,98668.0,0.050712]
[1735078228691,0.002,98669.0,98668.0,0.050712]
[1735078229001,0.3628,98669.0,98668.0,0.050712]
[1735078230593,0.4132,98669.0,98668.0,0.050712]
[1735078231596,0.15179752,98674.0,98668.0,0.050712]
[1735078231802,0.0504,98697.0,98692.0,0.0507]
[1735078232103,0.25277603,98700.0,98692.0,0.4115]
[1735078232790,0.0099,98700.0,98699.0,0.050697]
[1735078234597,0.0169,98700.0,98699.0,0.051697]
[1735078235499,0.0229,98700.0,98699.0,0.052697]
[1735078235891,0.0159,98700.0,98699.0,0.051697]
[1735078236095,0.0139,98700.0,98699.0,0.050697]
[1735078240909,0.0139,98700.0,98699.0,0.411497]
[1735078251814,0.0139,98700.0,98699.0,0.050697]
[1735078252006,0.0139,98700.0,98699.0,0.411497]
[1735078273624,0.0139,98700.0,98696.0,0.23960915]
[1735078273823,0.0139,98700.0,98699.0,0.050697]
[1735078274734,0.0129,98700.0,98699.0,0.050697]
[1735078274918,0.0119,98700.0,98699.0,0.050697]
[1735078275427,0.18157086,98709.0,98708.0,0.050692]
[1735078275729,0.18157086,98714.0,98713.0,0.050689]
[1735078277119,0.004,98714.0,98713.0,0.050689]
[1735078278430,0.01,98714.0,98713.0,0.051689]
[1735078282527,0.01571535,98731.0,98730.0,0.050681]
[1735078282733,0.24287603,98738.0,98736.0,0.050678]
[1735078282934,0.24287603,98738.0,98737.0,0.0467]
[1735078283322,0.27323554,98744.0,98743.0,0.050674]
[1735078283830,0.16698654,98744.0,98743.0,0.050674]
[1735078284316,5.4e-07,98744.0,98743.0,0.711474]
[1735078284522,0.00072,98756.0,98751.0,0.05067]
[1735078284720,0.12130889,98760.0,98751.0,0.41147]
[1735078285528,0.12130889,98760.0,98751.0,0.41247]
[1735078285727,0.3608,98776.0,98751.0,0.41247]
[1735078286625,0.36983938,98776.0,98751.0,0.41247]
[1735078286821,0.36983938,98776.0,98751.0,0.42145254]
[1735078287331,0.36983938,98776.0,98766.0,0.050662]
[1735078287526,0.42129638,98776.0,98766.0,0.050662]
[1735078287835,0.3616,98776.0,98775.0,0.050658]
[1735078288031,0.3608,98776.0,98775.0,0.050658]
[1735078288225,0.54237086,98776.0,98775.0,0.050658]
[1735078289432,0.54237086,98776.0,98775.0,0.051658]
[1735078291430,0.54237086,98776.0,98775.0,0.001]
[1735078293423,0.59307086,98776.0,98775.0,0.001]
[1735078302430,0.59307086,98776.0,98771.0,0.050659]
[1735078302636,0.54237086,98776.0,98775.0,0.001]
[1735078302837,0.59302786,98776.0,98775.0,0.001]
[1735078304341,0.69302786,98776.0,98775.0,0.001]
[1735078304737,0.69302786,98776.0,98774.0,0.050658]
[1735078305338,0.69302786,98776.0,98775.0,0.001]
[1735078305739,0.69302786,98776.0,98774.0,0.050658]
[1735078306045,0.69302786,98776.0,98774.0,0.051658]
[1735078306235,0.64237086,98776.0,98774.0,0.051658]
[1735078306432,0.050658,98775.0,98774.0,0.050658]
[1735078307046,0.103058,98775.0,98774.0,0.050658]
[1735078307638,0.103058,98775.0,98751.0,0.17932464]
[1735078307639,0.050667,98758.0,98751.0,0.17932464]
[1735078307845,0.0517,98757.0,98756.0,0.050667]
[1735078308137,0.0517,98757.0,98751.0,0.17932464]
[1735078308138,0.0517,98757.0,98751.0,0.18868503]
[1735078308340,0.050676,98740.0,98733.0,0.050679]
[1735078308545,0.411476,98740.0,98737.0,0.050677]
[1735078308946,0.411476,98740.0,98731.0,0.36070794]
[1735078309251,0.411476,98740.0,98738.0,0.050676]
[1735078309635,0.411476,98740.0,98738.0,0.055676]
[1735078309839,0.411476,98740.0,98738.0,0.005]
[1735078310638,0.3608,98740.0,98717.0,0.00956361]
[1735078310846,0.3608,98724.0,98722.0,0.050685]
[1735078311454,0.411484,98724.0,98722.0,0.050685]
[1735078311654,0.3608,98723.0,98722.0,0.050685]
[1735078312659,0.3608,98723.0,98722.0,0.059685]
[1735078313049,0.3608,98723.0,98722.0,0.064685]
[1735078314057,0.3608,98723.0,98722.0,0.060685]
[1735078314262,0.3608,98723.0,98722.0,0.064685]
[1735078314964,0.00224622,98726.0,98725.0,0.050683]
[1735078316257,0.00224622,98726.0,98725.0,0.053683]
[1735078317259,0.00224622,98726.0,98725.0,0.056683]
[1735078338180,0.050682,98727.0,98725.0,0.056683]
[1735078339282,0.050682,98727.0,98725.0,0.057683]
[1735078341185,0.050682,98727.0,98726.0,0.050683]
[1735078342289,0.050682,98727.0,98726.0,0.053683]
[1735078344076,0.050682,98727.0,98726.0,0.056683]
[1735078345986,0.15133852,98732.0,98727.0,0.050682]
[1735078346196,0.050665,98761.0,98744.0,0.050673]
[1735078346489,0.11849999,98768.0,98744.0,0.3608]
[1735078346685,0.11849999,98768.0,98767.0,0.050662]
[1735078347287,0.00224622,98773.0,98772.0,0.050659]
[1735078347492,0.101356,98779.0,98773.0,0.050659]
[1735078347677,0.050658,98775.0,98769.0,0.05066]
[1735078347873,0.050658,98775.0,98762.0,0.3608]
[1735078347874,0.004,98768.0,98762.0,0.3608]
[1735078348483,0.09856445,98772.0,98762.0,0.3608]
[1735078348886,0.005,98773.0,98762.0,0.3608]
[1735078349191,0.002,98768.0,98762.0,0.3608]
[1735078349590,0.050664,98763.0,98756.0,0.23937466]
[1735078349786,0.3608,98757.0,98756.0,0.23712844]
[1735078349991,0.3608,98757.0,98756.0,0.15712844]
[1735078350287,0.3608,98757.0,98741.0,0.36126794]
[1735078350288,0.05067,98750.0,98749.0,0.15712844]
[1735078351394,0.05067,98750.0,98737.0,0.34104]
[1735078351581,0.3608,98738.0,98730.0,0.09856445]
[1735078351899,0.05068,98732.0,98730.0,0.09856445]
[1735078352083,0.050681,98730.0,98725.0,0.050683]
[1735078352279,0.050681,98729.0,98725.0,0.050683]
[1735078352587,0.050677,98737.0,98719.0,0.099886]
[1735078352887,0.3608,98728.0,98719.0,0.10917947]
[1735078353287,0.3608,98728.0,98719.0,0.0492]
[1735078353594,0.3608,98728.0,98712.0,0.0486]
[1735078353595,0.050686,98719.0,98713.0,0.050689]
[1735078353792,0.050688,98716.0,98713.0,0.050689]
[1735078354189,0.050689,98714.0,98713.0,0.050689]
[1735078355196,0.050689,98714.0,98713.0,0.06934467]
[1735078355490,0.050689,98714.0,98713.0,0.07534467]
[1735078356993,0.3608,98719.0,98714.0,0.050689]
[1735078358283,0.3608,98719.0,98714.0,0.056689]
[1735078358483,0.3608,98719.0,98714.0,0.065689]
[1735078359889,0.3608,98719.0,98714.0,0.015]
[1735078360399,0.411486,98719.0,98716.0,0.050688]
[1735078361201,0.411486,98719.0,98717.0,0.050687]
[1735078362401,0.411486,98719.0,98717.0,0.055687]
[1735078363396,0.411486,98719.0,98717.0,0.063687]
[1735078363697,0.050686,98719.0,98717.0,0.063687]
[1735078363894,0.411486,98719.0,98717.0,0.063687]
[1735078366796,0.3608,98719.0,98717.0,0.063687]
[1735078367001,0.050687,98718.0,98717.0,0.063687]
[1735078367505,0.3608,98721.0,98717.0,0.013]
[1735078367702,0.3608,98721.0,98720.0,0.050686]
[1735078370206,0.3608,98721.0,98720.0,0.056686]
[1735078371006,0.3608,98721.0,98720.0,0.060686]
[1735078373908,0.3608,98724.0,98722.0,0.050684]
[1735078374497,0.3608,98724.0,98720.0,0.01]
[1735078374693,0.3608,98724.0,98723.0,0.050684]
[1735078375797,0.3608,98724.0,98723.0,0.053684]
[1735078376806,0.3608,98724.0,98723.0,0.057684]
[1735078380612,0.36156,98740.0,98739.0,0.050676]
[1735078380913,0.3608,98740.0,98739.0,0.050676]
[1735078382306,0.002,98740.0,98739.0,0.050676]
[1735078383312,0.002,98740.0,98731.0,0.05068]
[1735078383813,0.050672,98747.0,98731.0,0.05068]
[1735078384113,0.050672,98747.0,98744.0,0.050673]
[1735078385608,0.050674,98743.0,98740.0,0.050675]
[1735078385813,0.45936445,98750.0,98741.0,0.050675]
[1735078386114,0.050675,98741.0,98731.0,0.007]
[1735078386609,0.45936445,98750.0,98730.0,0.050681]
[1735078386812,0.050671,98748.0,98730.0,0.050681]
[1735078387016,0.3608,98740.0,98730.0,0.050681]
[1735078387418,0.3608,98740.0,98731.0,0.001]
[1735078388112,0.4114,98740.0,98731.0,0.001]
[1735078388306,0.050678,98735.0,98731.0,0.001]
[1735078388517,0.050679,98734.0,98731.0,0.001]
[1735078388911,0.050679,98734.0,98730.0,0.052681]
[1735078389110,0.050679,98734.0,98730.0,0.054681]
[1735078389307,0.050679,98734.0,98730.0,0.052681]
[1735078389609,0.050679,98734.0,98731.0,0.003]
[1735078390109,0.050679,98734.0,98731.0,0.002]
[1735078390703,0.050679,98734.0,98731.0,0.003]
[1735078391000,0.050679,98734.0,98731.0,0.001]
[1735078391204,0.41148,98732.0,98731.0,0.001]
[1735078391814,0.41148,98732.0,98731.0,0.003]
[1735078393810,0.05068,98732.0,98731.0,0.003]
[1735078394012,0.4114,98740.0,98731.0,0.003]
[1735078394317,0.3608,98740.0,98731.0,0.003]
[1735078394521,0.3608,98740.0,98737.0,0.050677]
[1735078395021,0.050676,98739.0,98737.0,0.050677]
[1735078396113,0.051676,98739.0,98737.0,0.050677]
[1735078397029,0.051676,98739.0,98737.0,0.051677]
[1735078397211,0.051676,98739.0,98737.0,0.001]
[1735078397411,0.051676,98739.0,98718.0,0.30051604]
[1735078397412,0.050686,98719.0,98718.0,0.30051604]
[1735078397616,0.050689,98714.0,98704.0,0.39684675]
[1735078397815,0.050689,98714.0,98704.0,0.39736675]
[1735078398018,0.050689,98714.0,98704.0,0.38766762]
[1735078398719,0.050689,98714.0,98712.0,0.36961925]
[1735078399423,0.050689,98714.0,98704.0,0.38766762]
[1735078399424,0.3608,98713.0,98704.0,0.00052]
[1735078399623,0.0507,98693.0,98692.0,0.30095949]
[1735078399816,0.4115,98693.0,98692.0,0.30043949]
[1735078400815,0.050708,98678.0,98675.0,0.05342]
[1735078401020,0.09856445,98690.0,98674.0,0.05083637]
[1735078401221,0.0537,98692.0,98674.0,0.05083637]
[1735078401222,0.050708,98677.0,98674.0,0.05083637]
[1735078401618,0.050709,98676.0,98674.0,0.05083637]
[1735078402126,0.050709,98676.0,98675.0,0.005]
[1735078402922,0.051709,98676.0,98675.0,0.005]
[1735078403429,0.051709,98676.0,98674.0,0.00612737]
[1735078403622,0.051709,98676.0,98674.0,0.01012737]
[1735078403824,0.11335402,98692.0,98674.0,0.01012737]
[1735078403825,0.411483,98726.0,98674.0,0.31012737]
[1735078404023,0.18225817,98720.0,98708.0,0.3608]
[1735078404322,0.18225817,98720.0,98716.0,0.3608]
[1735078404517,0.18225817,98720.0,98718.0,0.050686]
[1735078404734,0.18225817,98720.0,98716.0,0.3608]
[1735078405024,0.050682,98727.0,98716.0,0.3608]
[1735078405525,0.050682,98727.0,98717.0,0.09856445]
[1735078405724,0.050683,98725.0,98717.0,0.09856445]
[1735078406226,0.050683,98725.0,98719.0,0.050686]
[1735078406524,0.001,98727.0,98720.0,0.050686]
[1735078407228,0.001,98727.0,98721.0,0.050685]
[1735078408120,0.001,98725.0,98721.0,0.050685]
[1735078408521,0.050683,98726.0,98721.0,0.055685]
[1735078408719,0.050685,98722.0,98721.0,0.005]
[1735078409118,0.050685,98722.0,98721.0,0.002]
[1735078409625,0.050685,98722.0,98721.0,0.008]
[1735078410326,0.050685,98722.0,98721.0,0.006]
[1735078410922,0.050685,98722.0,98721.0,0.004]
[1735078411123,0.050685,98722.0,98721.0,0.001]
[1735078411331,0.050685,98722.0,98721.0,0.006]
[1735078411732,0.052685,98722.0,98721.0,0.001]
[1735078412625,0.052685,98722.0,98712.0,0.05069]
[1735078412626,0.050688,98717.0,98712.0,0.05069]
[1735078412930,0.3608,98715.0,98712.0,0.05069]
[1735078413130,0.050688,98717.0,98712.0,0.05069]
[1735078413333,0.050688,98717.0,98710.0,0.09856445]
[1735078413533,0.050688,98717.0,98713.0,0.050689]
[1735078413729,0.050688,98716.0,98713.0,0.050689]
[1735078415236,0.050689,98715.0,98713.0,0.050689]
[1735078415632,0.050689,98715.0,98713.0,0.051689]
[1735078416631,0.0493,98728.0,98713.0,0.003]
[1735078416831,0.0493,98728.0,98727.0,0.050682]
[1735078418234,0.0543,98728.0,98727.0,0.050682]
[1735078428626,0.0543,98728.0,98727.0,0.052682]
[1735078428832,0.3608,98735.0,98727.0,0.052682]
[1735078428833,0.3608,98735.0,98734.0,0.050679]
[1735078429032,0.411478,98735.0,98734.0,0.050679]
[1735078429229,0.3608,98735.0,98734.0,0.050679]
[1735078429735,0.411478,98735.0,98734.0,0.050679]
[1735078431036,0.414478,98735.0,98734.0,0.050679]
[1735078431438,0.411478,98735.0,98734.0,0.050679]
[1735078431637,0.414478,98735.0,98734.0,0.050679]
[1735078432148,0.3638,98735.0,98734.0,0.050679]
[1735078432336,0.15120617,98749.0,98734.0,0.411479]
[1735078432642,0.15120617,98749.0,98748.0,0.050671]
[1735078433544,0.3608,98755.0,98741.0,0.17974251]
[1735078433736,0.050664,98763.0,98754.0,0.3608]
[1735078433936,0.050664,98763.0,98761.0,0.050665]
[1735078434338,0.06068561,98763.0,98761.0,0.050665]
[1735078436550,0.06568561,98763.0,98762.0,0.050664]
[1735078436747,0.005,98763.0,98762.0,0.050664]
[1735078436945,0.3608,98767.0,98754.0,0.3608]
[1735078437142,0.3608,98767.0,98766.0,0.050662]
[1735078438352,0.3658,98767.0,98766.0,0.051662]
[1735078440055,0.416462,98767.0,98766.0,0.051662]
[1735078440853,0.416462,98767.0,98766.0,0.001]
[1735078441054,0.471962,98767.0,98766.0,0.001]
[1735078441244,0.416462,98767.0,98766.0,0.001]
[1735078441751,0.416462,98767.0,98766.0,0.051662]
[1735078448249,0.411462,98767.0,98766.0,0.050662]
[1735078448443,0.416462,98767.0,98766.0,0.050662]
[1735078452955,0.3658,98767.0,98748.0,0.17974251]
[1735078453161,0.3608,98752.0,98748.0,0.17974251]
[1735078453964,0.05067,98750.0,98748.0,0.18274251]
[1735078454456,0.05067,98750.0,98748.0,0.007]
[1735078454661,0.05067,98750.0,98748.0,0.004]
[1735078454866,0.05067,98750.0,98748.0,0.007]
[1735078456264,0.05067,98750.0,98748.0,0.004]
[1735078456465,0.05067,98750.0,98748.0,0.003]
[1735078457274,0.20886456,98765.0,98748.0,0.003]
[1735078457275,0.15146456,98764.0,98763.0,0.050664]
[1735078458367,0.18225817,98771.0,98767.0,0.050661]
[1735078458667,0.050658,98774.0,98772.0,0.050659]
[1735078459459,0.1,98776.0,98775.0,0.050658]
[1735078460659,0.1,98776.0,98775.0,0.051658]
[1735078460660,0.107,98776.0,98775.0,0.051658]
[1735078465867,0.107,98776.0,98775.0,0.001]
[1735078465868,0.4678,98776.0,98775.0,0.001]
[1735078468462,0.4678,98776.0,98751.0,0.17974251]
[1735078468463,0.050668,98756.0,98751.0,0.17974251]
[1735078468674,0.411468,98756.0,98751.0,0.17974251]
[1735078469464,0.411468,98756.0,98751.0,0.23241251]
[1735078469878,0.050669,98753.0,98751.0,0.23241251]
[1735078470570,0.050669,98753.0,98751.0,0.05267]
[1735078472475,0.050669,98753.0,98751.0,0.002]
[1735078473079,0.06062231,98753.0,98751.0,0.002]
[1735078473476,0.06062231,98753.0,98751.0,0.004]
[1735078474377,0.050669,98753.0,98751.0,0.004]
[1735078476170,0.050669,98753.0,98751.0,0.002]
[1735078476372,0.050669,98753.0,98751.0,0.004]
[1735078476574,0.3608,98756.0,98755.0,0.050668]
[1735078477877,0.3608,98756.0,98755.0,0.051668]
[1735078478376,0.3608,98760.0,98755.0,0.001]
[1735078478579,0.3608,98760.0,98759.0,0.050666]
[1735078479077,0.18225817,98771.0,98759.0,0.050666]
[1735078479374,0.18225817,98771.0,98770.0,0.05066]
[1735078479787,0.050657,98777.0,98760.0,0.0541]
[1735078479788,0.050657,98777.0,98775.0,0.050658]
[1735078481073,0.108,98776.0,98775.0,0.051658]
[1735078481482,0.108,98776.0,98775.0,0.001]
[1735078485982,0.108,98776.0,98775.0,0.051658]
[1735078490800,0.108,98776.0,98775.0,0.001]
[1735078494192,0.158657,98776.0,98775.0,0.001]
[1735078501893,0.108,98776.0,98775.0,0.051658]
[1735078502795,0.158657,98776.0,98775.0,0.051658]
[1735078505098,0.0223,98776.0,98775.0,0.051658]
[1735078505399,0.1,98800.0,98793.0,0.050648]
[1735078505400,0.18225817,98794.0,98793.0,0.050648]
[1735078505599,0.1,98800.0,98799.0,0.050645]
[1735078506895,0.1,98800.0,98799.0,0.051645]
[1735078507603,0.1,98800.0,98799.0,0.050645]
[1735078508706,0.1,98800.0,98799.0,0.23024864]
[1735078509004,0.050641,98807.0,98799.0,0.17960364]
[1735078509204,0.050641,98807.0,98801.0,0.411444]
[1735078509405,0.050641,98807.0,98802.0,0.050643]
[1735078510995,0.050641,98807.0,98803.0,0.050643]
[1735078511196,0.050641,98807.0,98804.0,0.050643]
[1735078511496,0.050641,98807.0,98801.0,0.3608]
[1735078511800,0.050641,98807.0,98805.0,0.050642]
[1735078513702,0.050639,98811.0,98807.0,0.050641]
[1735078513889,0.050639,98811.0,98808.0,0.05064]
[1735078516008,0.050639,98811.0,98808.0,0.05164]
[1735078516707,0.05064,98810.0,98808.0,0.05164]
[1735078517105,0.05064,98810.0,98790.0,0.3608]
[1735078517106,0.3608,98809.0,98790.0,0.3608]
[1735078517301,0.050649,98792.0,98790.0,0.3608]
[1735078517499,0.0534,98791.0,98790.0,0.3608]
[1735078518595,0.0534,98791.0,98782.0,0.411454]
[1735078518797,0.050652,98787.0,98783.0,0.050653]
[1735078519204,0.0534,98791.0,98783.0,0.050653]
[1735078519393,0.050652,98786.0,98784.0,0.050653]
[1735078520502,0.050653,98784.0,98783.0,0.001]
[1735078521409,0.0535,98785.0,98779.0,0.050655]
[1735078521710,0.0535,98785.0,98784.0,0.001]
[1735078521711,0.104152,98785.0,98784.0,0.001]
[1735078522409,0.050655,98781.0,98779.0,0.050655]
[1735078522610,0.411455,98781.0,98779.0,0.050655]
[1735078523907,0.411455,98781.0,98779.0,0.051655]
[1735078524711,0.411455,98781.0,98779.0,0.053655]
[1735078525204,0.411455,98781.0,98779.0,0.051655]
[1735078525410,0.411455,98781.0,98779.0,0.053655]
[1735078526397,0.411455,98781.0,98779.0,0.052655]
[1735078526603,0.411455,98781.0,98779.0,0.054655]
[1735078527812,0.050655,98781.0,98779.0,0.054655]
[1735078528013,0.06076244,98781.0,98779.0,0.052655]
[1735078528214,0.06076244,98781.0,98779.0,0.053655]
[1735078528406,0.06076244,98781.0,98779.0,0.052655]
[1735078529315,0.050655,98781.0,98779.0,0.052655]
[1735078531910,0.11411999,98785.0,98783.0,0.050653]
[1735078534017,0.11411999,98785.0,98783.0,0.051653]
[1735078538424,0.06346699,98785.0,98783.0,0.051653]
[1735078538619,0.050653,98784.0,98783.0,0.051653]
[1735078540223,0.3608,98789.0,98784.0,0.050653]
[1735078540518,0.101345,98799.0,98798.0,0.050646]
[1735078540708,0.155945,98799.0,98798.0,0.050646]
[1735078543116,0.156945,98799.0,98798.0,0.050646]
[1735078546925,0.051645,98799.0,98798.0,0.050646]
[1735078552328,0.06162479,98799.0,98798.0,0.050646]
[1735078553428,0.051645,98799.0,98798.0,0.050646]
[1735078554528,0.001,98799.0,98798.0,0.050646]
[1735078554724,0.001,98799.0,98798.0,0.411446]
[1735078556023,0.001,98799.0,98798.0,0.42166804]
[1735078556531,0.001,98799.0,98798.0,0.66110313]
[1735078558126,0.001,98799.0,98798.0,0.42166804]
[1735078558319,0.0533,98806.0,98798.0,0.42166804]
[1735078558520,0.0533,98806.0,98805.0,0.050642]
[1735078559833,0.0543,98806.0,98805.0,0.050642]
[1735078568933,0.001,98806.0,98805.0,0.050642]
[1735078569130,0.18149276,98834.0,98833.0,0.050628]
[1735078569435,0.18149276,98834.0,98833.0,0.411428]
[1735078570229,0.18149276,98834.0,98833.0,0.412428]
[1735078571228,0.18149276,98834.0,98833.0,0.42342635]
[1735078571429,0.01012121,98849.0,98833.0,0.42342635]
[1735078571430,0.01012121,98849.0,98848.0,0.05062]
[1735078571631,0.23210076,98872.0,98848.0,0.41142]
[1735078571829,0.050619,98850.0,98848.0,0.41142]
[1735078572240,0.0484,98849.0,98848.0,0.41142]
[1735078572836,0.0484,98849.0,98848.0,0.41242]
[1735078573033,0.0484,98849.0,98848.0,0.3618]
[1735078573432,0.0484,98849.0,98848.0,0.3608]
[1735078573632,0.0484,98849.0,98848.0,0.3618]
[1735078574340,0.0984,98849.0,98848.0,0.3618]
[1735078577144,0.10837521,98849.0,98848.0,0.3618]
[1735078577646,0.10837521,98849.0,98848.0,0.001]
[1735078579140,0.20837521,98849.0,98848.0,0.001]
[1735078581945,0.18149276,98875.0,98848.0,0.001]
[1735078582149,0.050613,98863.0,98862.0,0.050612]
[1735078583143,0.0498,98868.0,98859.0,0.3608]
[1735078583351,0.0498,98868.0,98866.0,0.050611]
[1735078585051,0.10041,98868.0,98866.0,0.051611]
[1735078585245,0.10041,98868.0,98866.0,0.052611]
[1735078589252,0.10041,98868.0,98866.0,0.002]
[1735078590551,0.3608,98899.0,98876.0,0.0037]
[1735078590755,0.050598,98893.0,98890.0,0.050599]
[1735078590949,0.050598,98893.0,98891.0,0.050598]
[1735078591457,0.0892,98892.0,98891.0,0.050598]
[1735078591649,0.0506,98887.0,98886.0,0.3608]
[1735078592548,0.0892,98892.0,98891.0,0.009]
[1735078592867,0.11017089,98900.0,98899.0,0.050594]
[1735078593048,0.11017089,98900.0,98899.0,0.411394]
[1735078593749,0.1,98900.0,98899.0,0.411394]
[1735078594057,0.0286,98900.0,98899.0,0.411394]
[1735078594656,0.15096446,98918.0,98899.0,0.411394]
[1735078594657,0.09045141,98924.0,98923.0,0.050582]
[1735078595755,0.09045141,98924.0,98923.0,0.061582]
[1735078596456,0.00076,98969.0,98939.0,0.050574]
[1735078596663,0.00076,98969.0,98953.0,0.3608]
[1735078596860,0.18064845,98970.0,98969.0,0.050558]
[1735078597048,0.18064845,98970.0,98968.0,0.050558]
[1735078597448,0.18064845,98970.0,98969.0,0.3608]
[1735078597657,0.1963326,98970.0,98969.0,0.3608]
[1735078598051,0.1963326,98970.0,98948.0,0.3608]
[1735078598052,0.5571326,98970.0,98948.0,0.3608]
[1735078598353,0.5571326,98970.0,98953.0,0.001]
[1735078598354,0.01568415,98962.0,98953.0,0.001]
[1735078598559,0.01568415,98962.0,98961.0,0.3608]
[1735078598754,0.050557,98973.0,98961.0,0.3608]
[1735078599464,0.050557,98973.0,98969.0,0.001]
[1735078599960,0.050557,98973.0,98961.0,0.3618]
[1735078601064,0.050557,98973.0,98961.0,0.3628]
[1735078601361,0.050557,98973.0,98961.0,0.3618]
[1735078601666,0.050557,98973.0,98969.0,0.001]
[1735078601957,0.050557,98971.0,98961.0,0.3618]
[1735078602155,0.050557,98971.0,98961.0,0.3628]
[1735078602557,0.3608,98970.0,98961.0,0.3628]
[1735078602755,0.050558,98969.0,98961.0,0.3628]
[1735078602962,0.050558,98969.0,98961.0,0.001]
[1735078603165,0.050558,98969.0,98961.0,0.002]
[1735078603363,0.3608,98981.0,98961.0,0.3628]
[1735078603664,0.3608,98981.0,98972.0,0.050556]
[1735078603864,0.09844592,98980.0,98972.0,0.050556]
[1735078604664,0.3608,98981.0,98972.0,0.050556]
[1735078605061,0.3608,98981.0,98972.0,0.052556]
[1735078605647,0.050553,98980.0,98972.0,0.052556]
[1735078606054,0.3608,98981.0,98972.0,0.052556]
[1735078606055,0.050553,98979.0,98972.0,0.051556]
[1735078606265,0.050553,98979.0,98972.0,0.052556]
[1735078606765,0.050554,98978.0,98972.0,0.052556]
[1735078607566,0.3608,98981.0,98976.0,0.050555]
[1735078608862,0.411352,98981.0,98976.0,0.051555]
[1735078609253,0.411352,98981.0,98976.0,0.001]
[1735078609461,0.411352,98981.0,98979.0,0.050553]
[1735078609766,0.3608,98981.0,98979.0,0.050553]
[1735078610757,0.3608,98981.0,98979.0,0.051553]
[1735078611257,0.3608,98981.0,98972.0,0.3608]
[1735078611657,0.3608,98981.0,98979.0,0.050553]
[1735078612370,0.3608,98981.0,98961.0,0.3608]
[1735078612557,0.050554,98978.0,98961.0,0.3608]
[1735078612756,0.050554,98978.0,98972.0,0.051556]
[1735078613264,0.0452,98980.0,98972.0,0.051556]
[1735078613565,0.050556,98974.0,98972.0,0.050556]
[1735078613766,0.4006,98973.0,98972.0,0.050556]
[1735078613954,0.4006,98973.0,98961.0,0.3618]
[1735078614161,0.050558,98970.0,98961.0,0.3618]
[1735078614359,0.050558,98970.0,98967.0,0.050559]
[1735078614665,0.050558,98970.0,98961.0,0.3608]
[1735078614666,0.050558,98970.0,98968.0,0.050558]
[1735078614880,0.40136,98973.0,98968.0,0.050558]
[1735078615069,0.001,98978.0,98970.0,0.3608]
[1735078615370,0.001,98978.0,98977.0,0.050554]
[1735078615552,0.3608,98981.0,98980.0,0.050553]
[1735078616361,0.3608,98981.0,98970.0,0.46024592]
[1735078616556,0.3608,98981.0,98979.0,0.050553]
[1735078617458,0.3608,98981.0,98980.0,0.001]
[1735078618060,0.411353,98981.0,98980.0,0.001]
[1735078618367,0.0398,98989.0,98988.0,0.050549]
[1735078619965,0.0445,98991.0,98990.0,0.050548]